bitfinex/quotes_ETHUSD_20220201
["timestamp","ask_amount","ask_price","bid_price","bid_amount"]
[1643731920869,21.512,2784.3,2782.9,0.38819997]
[1643731921468,1.27922915,2783.7,2783.1,0.44830491]
[1643731921667,1.27922915,2783.7,2782.9,1.13819996]
[1643731921870,1.27922915,2783.7,2782.9,0.13819997]
[1643731922072,1.27922915,2783.7,2782.3,1.89841999]
[1643731922272,1.27922915,2783.7,2782.2,0.25]
[1643731922273,1.28364225,2783.7,2782.2,0.25]
[1643731922470,1.27922915,2783.7,2782.2,0.25]
[1643731922726,1.27922915,2783.7,2782.7,0.39628979]
[1643731922925,1.27922915,2783.7,2782.2,0.25]
[1643731923129,0.7261562,2783.2,2782.2,0.2]
[1643731923328,0.7261562,2783.2,2782.5,0.3]
[1643731923731,0.7261562,2783.2,2782.2,0.2]
[1643731923929,21.8061562,2783.2,2782.0,0.52992204]
[1643731924127,0.34499664,2782.5,2782.0,0.52992204]
[1643731924327,21.8061562,2783.2,2782.0,0.52992204]
[1643731924527,0.7261562,2783.2,2782.0,0.52992204]
[1643731924726,0.68844671,2782.6,2782.0,0.52992204]
[1643731925128,0.432,2783.3,2782.0,0.52992204]
[1643731925528,0.43316213,2783.0,2782.0,0.52992204]
[1643731926230,0.67211051,2782.5,2782.0,0.52992204]
[1643731926472,0.43316213,2783.0,2782.0,0.89935749]
[1643731927271,0.43316213,2783.0,2782.0,1.89935748]
[1643731927472,0.43316213,2783.0,2782.0,0.89935749]
[1643731927672,0.4133826,2782.5,2782.0,0.89935749]
[1643731927874,0.4133826,2782.5,2782.0,0.52992204]
[1643731928071,0.79073033,2782.6,2782.0,0.52992204]
[1643731928280,0.79073033,2782.6,2781.8,0.01284451]
[1643731928476,21.08,2782.5,2781.6,0.1]
[1643731928674,0.79585244,2782.6,2781.7,0.01276576]
[1643731928876,0.79073033,2782.6,2781.8,0.99999999]
[1643731929076,0.79073033,2782.6,2781.7,0.01276576]
[1643731929272,0.7360684,2782.1,2781.7,0.01276576]
[1643731929474,2.91446,2783.1,2781.7,0.01276576]
[1643731929475,2.91446,2783.1,2781.8,0.99999999]
[1643731929874,2.91446,2783.1,2781.7,0.01276576]
[1643731929875,1.217,2783.1,2781.7,0.01276576]
[1643731930326,0.44923331,2782.5,2781.9,0.36790901]
[1643731930524,0.44923331,2782.5,2781.7,1.01276575]
[1643731930525,0.44923331,2782.5,2781.7,1.31276575]
[1643731931328,0.44923331,2782.5,2781.9,0.99999999]
[1643731931528,0.42851682,2782.0,2781.7,0.31276576]
[1643731931727,0.42851682,2782.0,2781.7,0.3]
[1643731932127,0.71644413,2782.2,2781.6,0.3]
[1643731932328,2.20650252,2783.0,2781.9,0.99999999]
[1643731932527,22.297,2783.1,2781.9,0.99999999]
[1643731932728,2.30426741,2783.0,2781.6,1.99999999]
[1643731932930,1.217,2783.1,2781.9,1.01270864]
[1643731933132,1.217,2783.1,2782.3,0.43147493]
[1643731933333,0.74346626,2783.4,2782.3,0.43147493]
[1643731933541,9.5547,2783.7,2783.0,0.99999999]
[1643731933733,1.1606,2784.1,2783.0,0.99999999]
[1643731933968,1.1606,2784.1,2783.0,1.29999999]
[1643731934163,0.143886,2784.2,2783.0,1.29999999]
[1643731934767,0.143886,2784.2,2783.3,0.99999999]
[1643731934968,0.143886,2784.2,2783.4,0.99999999]
[1643731935365,0.143886,2784.2,2783.4,1.29999999]
[1643731935567,0.093886,2784.2,2783.4,1.29999999]
[1643731935965,0.32416519,2783.7,2783.4,1.29999999]
[1643731936170,0.32416519,2783.7,2783.5,0.99999999]
[1643731936567,0.32416519,2783.7,2783.3,1.1980854]
[1643731936770,0.32416519,2783.7,2783.3,0.3]
[1643731936968,0.32416519,2783.7,2783.2,1.3]
[1643731937167,0.32416519,2783.7,2783.2,0.3]
[1643731938047,0.32416519,2783.7,2783.1,0.89827]
[1643731938242,0.32416519,2783.7,2783.1,1.19827]
[1643731938444,2.59551742,2784.5,2783.3,0.99999999]
[1643731938648,19.67986,2785.2,2783.9,0.99999999]
[1643731938853,7.8831,2785.2,2784.0,0.13819997]
[1643731939048,1.51487251,2785.1,2784.7,0.99999999]
[1643731939244,0.3418,2785.3,2784.0,0.13819997]
[1643731939447,0.40405485,2785.0,2784.0,0.13819997]
[1643731939647,0.40405485,2785.0,2784.1,0.518]
[1643731939847,0.40405485,2785.0,2784.4,0.8978088]
[1643731940051,0.40405485,2785.0,2784.2,1.7956176]
[1643731940248,0.40405485,2785.0,2784.3,0.3]
[1643731941250,0.40405485,2785.0,2784.2,0.3]
[1643731941471,0.40405485,2785.0,2784.0,0.13819997]
[1643731941970,0.40405485,2785.0,2784.0,1.33611997]
[1643731942169,0.40405485,2785.0,2784.0,0.43819997]
[1643731942771,0.40405485,2785.0,2784.0,0.31752997]
[1643731942968,0.40405485,2785.0,2784.0,0.61752997]
[1643731943170,0.40405485,2785.0,2784.1,0.41044347]
[1643731943370,0.40405485,2785.0,2784.1,0.71044347]
[1643731943569,0.40405485,2785.0,2784.1,1.01044347]
[1643731943975,0.40405485,2785.0,2784.1,2.01044347]
[1643731944173,1.51483267,2784.9,2784.1,2.01044347]
[1643731944470,0.40405485,2785.0,2784.1,1.01044347]
[1643731944668,1.51481535,2784.9,2784.1,2.01044347]
[1643731944871,3.27513636,2785.2,2784.1,2.01044347]
[1643731949188,0.33840405,2784.2,2783.4,0.25]
[1643731949484,0.01062733,2784.6,2783.2,0.17933]
[1643731949687,0.01062733,2784.6,2783.4,2.6942059]
[1643731949885,2.20547258,2784.8,2783.4,2.6942059]
[1643731949886,2.20547258,2784.8,2783.7,0.898053]
[1643731950087,1.51498543,2784.7,2783.5,1.0]
[1643731950286,1.1525,2784.9,2783.5,1.0]
[1643731950287,1.51498543,2784.6,2783.5,1.0]
[1643731950486,1.1525,2784.9,2784.1,0.38454094]
[1643731950689,1.51490986,2784.8,2784.1,0.68454094]
[1643731950890,0.3418,2785.3,2784.1,0.68454094]
[1643731951093,1.51486569,2785.2,2784.1,0.68454094]
[1643731951692,1.8708605,2785.2,2784.6,0.44978777]
[1643731951891,1.51486569,2785.1,2784.1,0.3]
[1643731952090,2.22299372,2785.1,2784.0,0.8979427]
[1643731952291,1.51486569,2785.0,2784.0,1.7958527]
[1643731952492,1.51486569,2785.0,2784.1,0.3]
[1643731952935,1.51486569,2785.0,2784.3,0.32298972]
[1643731953141,0.3418,2785.3,2784.4,2.4382324]
[1643731953338,0.3418,2785.3,2784.4,4.1692324]
[1643731953536,0.3418,2785.3,2784.4,4.25981728]
[1643731953735,0.3418,2785.3,2784.4,3.95981728]
[1643731953937,0.3418,2785.3,2784.4,1.431]
[1643731954137,0.3418,2785.3,2784.6,0.8976987]
[1643731954138,0.31726291,2785.1,2784.6,0.8976987]
[1643731954342,0.3418,2785.3,2784.6,1.1976987]
[1643731955136,0.3418,2785.3,2784.6,2.0954087]
[1643731955539,0.3418,2785.3,2784.6,2.9930787]
[1643731955737,0.3418,2785.3,2784.7,1.1794]
[1643731956391,0.3418,2785.3,2784.9,0.35372769]
[1643731956587,0.3418,2785.3,2785.0,0.1794]
[1643731957087,0.3418,2785.3,2785.0,1.0770423]
[1643731957288,0.3418,2785.3,2785.1,0.3]
[1643731957488,0.3418,2785.3,2785.2,0.1794]
[1643731960144,0.0001,2785.3,2785.2,0.1794]
[1643731960336,0.0001,2785.3,2785.1,0.1794]
[1643731960738,0.0001,2785.3,2785.1,0.4794]
[1643731961138,0.0001,2785.3,2785.1,1.4794]
[1643731961540,0.0001,2785.3,2785.1,0.4794]
[1643731963141,0.0001,2785.3,2785.1,1.37694]
[1643731963343,0.68142208,2785.8,2785.1,1.37694]
[1643731963543,0.33612679,2785.6,2785.1,1.37694]
[1643731963745,0.33612679,2785.6,2785.1,1.67694]
[1643731963980,8.0349,2786.6,2785.2,0.8975413]
[1643731964181,8.0349,2786.6,2785.3,0.3]
[1643731964182,1.51423081,2786.5,2785.3,0.3]
[1643731964583,1.51423081,2786.5,2785.3,1.3]
[1643731964789,1.51423081,2786.5,2785.4,0.89748]
[1643731964985,0.40707035,2786.3,2785.7,0.38209053]
[1643731965185,0.40707035,2786.3,2785.7,2.17675223]
[1643731965386,0.40707035,2786.3,2785.7,1.7946617]
[1643731965785,0.40707035,2786.3,2785.8,0.3]
[1643731966186,0.05,2787.2,2785.8,0.3]
[1643731966390,1.51389346,2787.1,2785.9,0.19439525]
[1643731966587,1.36389346,2787.1,2785.9,0.1794]
[1643731967390,0.42530415,2786.5,2785.9,0.1794]
[1643731968040,0.42530415,2786.5,2786.2,0.8971938]
[1643731968241,0.42530415,2786.5,2786.3,0.1794]
[1643731968443,0.42530415,2786.5,2785.4,0.01276635]
[1643731968644,0.42465271,2785.6,2785.0,2.69249]
[1643731968843,1.0074,2785.6,2785.0,2.69249]
[1643731969644,1.0074,2785.6,2785.2,2.0949777]
[1643731969849,1.0074,2785.6,2785.3,1.07699]
[1643731970244,1.0074,2785.6,2785.3,2.07699]
[1643731970444,0.70251377,2786.1,2785.3,2.07699]
[1643731970646,0.9181,2786.5,2785.3,2.97446]
[1643731971047,0.9181,2786.5,2785.5,0.8974359]
[1643731971246,0.42950655,2785.9,2785.6,1.67679]
[1643731971487,0.42950655,2785.9,2785.6,0.7794]
[1643731971788,0.42950655,2785.9,2785.6,1.4794]
[1643731971987,0.42950655,2785.9,2785.6,0.4794]
[1643731972191,0.42950655,2785.9,2785.6,0.1794]
[1643731972387,0.42950655,2785.9,2785.6,0.4794]
[1643731973791,0.94101347,2786.1,2785.6,0.4794]
[1643731974392,0.94101347,2786.1,2785.6,2.2741831]
[1643731974592,0.94101347,2786.1,2785.6,1.9741831]
[1643731974795,2.54132152,2786.0,2785.6,0.1794]
[1643731975240,0.3434403,2786.0,2785.6,0.1794]
[1643731975435,0.3434403,2786.0,2784.9,0.1794]
[1643731975636,0.70550042,2785.2,2784.9,0.1794]
[1643731976037,0.70550042,2785.2,2784.6,0.1794]
[1643731976537,0.38114564,2784.7,2784.3,0.1794]
[1643731976939,0.38114564,2784.7,2784.2,0.1794]
[1643731976940,1.15663009,2784.7,2784.2,0.1794]
[1643731977139,1.15663009,2784.7,2784.0,2.6937018]
[1643731977140,1.15663009,2784.7,2784.3,0.8978761]
[1643731977340,0.38114564,2784.7,2784.4,0.1794]
[1643731977542,0.9263,2784.8,2784.4,0.1794]
[1643731978540,0.8763,2784.8,2784.4,0.1794]
[1643731978743,0.8763,2784.8,2784.4,0.60562564]
[1643731978994,0.8763,2784.8,2784.4,2.40114484]
[1643731979191,0.8763,2784.8,2784.4,3.40114484]
[1643731979399,0.8763,2784.8,2784.5,0.3]
[1643731979600,0.8763,2784.8,2784.6,1.0770424]
[1643731979802,0.8763,2784.8,2784.7,0.47933]
[1643731980199,0.8763,2784.8,2784.7,1.3]
[1643731981599,0.8763,2784.8,2784.7,3.70737232]
[1643731981800,0.8763,2784.8,2784.7,1.47933]
[1643731982202,0.8763,2784.8,2784.7,3.92962275]
[1643731982641,0.8763,2784.8,2784.7,1.47933]
[1643731983049,0.8763,2784.8,2784.7,1.3]
[1643731983642,0.8763,2784.8,2784.7,0.3]
[1643731983949,1.55411679,2784.8,2784.7,0.3]
[1643731985745,1.55411679,2784.8,2784.6,0.8976424]
[1643731985949,1.55411679,2784.8,2783.9,4.73848]
[1643731985950,1.55411679,2784.8,2784.0,1.7957168]
[1643731986391,0.8763,2784.8,2784.0,1.7957168]
[1643731986594,3.22807981,2785.9,2784.1,2.47413094]
[1643731986796,1.51435217,2785.8,2784.2,0.89765]
[1643731986995,3.2151,2785.9,2785.0,0.8975638]
[1643731987197,1.5143355,2785.8,2784.4,7.7369]
[1643731987395,1.5143355,2785.7,2784.3,2.0953]
[1643731987594,1.5143355,2785.7,2784.3,1.6]
[1643731987795,1.5143355,2785.7,2784.3,0.3]
[1643731987995,1.5143355,2785.7,2784.3,2.49776]
[1643731988397,1.5143355,2785.7,2784.3,2.3955]
[1643731988698,0.33381715,2784.6,2784.5,0.8977771]
[1643731988997,0.33381715,2784.6,2784.5,1.1977771]
[1643731989400,0.33381715,2784.6,2784.5,0.3]
[1643731989796,0.33381715,2784.6,2784.3,1.3]
[1643731990241,0.89983433,2785.0,2784.3,0.3]
[1643731990441,0.8258207,2784.4,2784.3,1.1978478]
[1643731990641,0.8258207,2784.4,2784.3,0.8978478]
[1643731990846,0.8258207,2784.4,2784.3,1.4978478]
[1643731991240,0.8258207,2784.4,2784.3,0.6]
[1643731991643,0.8258207,2784.4,2784.0,1.3]
[1643731991843,0.8258207,2784.4,2784.0,1.6]
[1643731992044,0.8258207,2784.4,2783.6,0.17933]
[1643731992242,0.37883192,2784.5,2783.5,1.93396]
[1643731992243,0.72955493,2783.7,2783.5,1.93396]
[1643731992443,0.72955493,2783.7,2783.5,1.9341244]
[1643731992843,2.7223545,2783.6,2783.4,0.13819997]
[1643731993042,2.7223545,2783.6,2783.1,0.80048292]
[1643731993242,2.7223545,2783.6,2783.1,1.80048292]
[1643731993445,2.7223545,2783.6,2783.1,0.55048292]
[1643731994490,0.80173372,2783.9,2783.1,2.34677872]
[1643731994691,0.80173372,2783.9,2783.1,2.64677872]
[1643731994893,0.80173372,2783.9,2783.1,3.94677872]
[1643731995096,0.80173372,2783.9,2783.1,2.94677872]
[1643731995293,0.80173372,2783.9,2783.2,1.0]
[1643731995491,1.14026449,2783.9,2783.2,1.0]
[1643731995692,4.3529,2784.3,2783.2,1.8980708]
[1643731995894,4.3529,2784.3,2783.5,1.7959331]
[1643731996095,2.22982078,2785.0,2783.5,1.7959331]
[1643731996293,2.22982078,2785.0,2783.5,2.3959331]
[1643731996695,2.22982078,2785.0,2783.5,3.2939031]
[1643731996896,0.32519246,2784.1,2783.5,3.6358572]
[1643731997094,0.32519246,2784.1,2783.6,1.0]
[1643731997294,0.32519246,2784.1,2783.7,0.89799]
[1643731997494,0.32519246,2784.1,2783.8,0.3]
[1643731997735,0.32519246,2784.1,2783.8,1.1979804]
[1643731998938,0.32519246,2784.1,2783.8,0.3]
[1643731999136,0.32519246,2784.1,2783.7,0.3]
[1643731999337,0.32519246,2784.1,2783.8,0.3]
[1643731999537,0.8067996,2784.3,2783.7,1.0]
[1643731999738,0.8067996,2784.3,2783.6,2.3959935]
[1643731999940,0.8067996,2784.3,2783.7,0.89799]
[1643732000141,1.2028,2784.9,2783.7,0.89799]
[1643732000142,1.2028,2784.9,2783.9,1.7958527]
[1643732000340,1.2028,2784.9,2783.9,3.89711169]
[1643732000541,10.6815,2785.1,2784.2,0.41718925]
[1643732000743,10.3351,2785.8,2784.2,2.82439465]
[1643732000941,1.51434514,2785.7,2784.2,3.61396824]
[1643732001141,3.83455755,2785.7,2784.7,0.897759]
[1643732001399,3.83455755,2785.7,2784.7,0.80125899]
[1643732001400,0.01232843,2785.3,2784.7,0.80125899]
[1643732001592,1.51434514,2785.2,2784.7,0.80125899]
[1643732001792,21.08,2785.1,2784.7,0.80125899]
[1643732001990,1.51434514,2785.0,2784.7,0.80125899]
[1643732002192,0.90736662,2785.2,2784.7,0.80125899]
[1643732002394,0.90736662,2785.2,2784.1,0.41726648]
[1643732002593,0.90736662,2785.2,2784.1,0.80125899]
[1643732002794,0.90736662,2785.2,2784.1,1.10125899]
[1643732003193,0.90736662,2785.2,2784.1,1.40125899]
[1643732003600,3.76541273,2785.1,2784.1,2.40125899]
[1643732003797,2.25086128,2785.1,2784.2,0.8979227]
[1643732004000,0.90736662,2785.2,2784.3,0.3]
[1643732004196,3.79589098,2785.1,2784.3,1.10125899]
[1643732004395,2.28135243,2785.1,2784.3,0.3]
[1643732004599,0.87321257,2784.6,2784.3,0.3]
[1643732004797,3.79165568,2785.3,2784.0,0.6]
[1643732004997,1.51454176,2785.2,2784.2,0.8979276]
[1643732005241,1.51454176,2785.2,2784.5,0.42505519]
[1643732005437,7.4138,2785.7,2784.5,0.42505519]
[1643732005638,0.7669912,2785.3,2784.5,0.817]
[1643732005837,0.7669912,2785.3,2784.5,1.817]
[1643732006238,0.7669912,2785.3,2784.6,0.17933]
[1643732006444,0.49765697,2785.3,2784.7,0.13819997]
[1643732006648,0.44880489,2785.2,2785.0,0.897604]
[1643732006844,0.49765697,2785.2,2785.0,1.897604]
[1643732007044,0.49765697,2785.2,2785.1,0.3]
[1643732007443,0.49765697,2785.2,2785.0,0.3]
[1643732007646,0.01258419,2785.1,2784.4,2.975059]
[1643732007944,0.51024116,2785.1,2784.4,1.975059]
[1643732008142,0.44807921,2784.9,2784.4,1.975059]
[1643732008550,0.83487962,2784.7,2784.4,1.795599]
[1643732008746,0.83487962,2784.7,2784.6,1.7955472]
[1643732009195,6.7,2785.6,2784.6,2.0955472]
[1643732009391,1.51441494,2785.5,2784.6,2.0955472]
[1643732009690,1.99990072,2785.5,2784.6,2.0955472]
[1643732009890,1.51439479,2785.4,2784.6,2.0955472]
[1643732010095,1.51439479,2785.4,2784.6,1.1977972]
[1643732010096,4.1752432,2785.4,2784.6,1.1977972]
[1643732010293,4.1752432,2785.4,2784.1,2.56263]
[1643732010294,4.1752432,2785.4,2784.2,1.7956458]
[1643732010295,0.71664263,2785.3,2784.2,1.7956458]
[1643732010493,2.58491147,2785.3,2784.2,1.7956458]
[1643732010693,1.07044096,2785.3,2784.2,1.7956458]
[1643732010892,1.07044096,2785.3,2784.4,0.89782]
[1643732011291,1.07044096,2785.3,2784.5,0.3952302]
[1643732011292,0.7244836,2784.8,2784.5,0.3952302]
[1643732011492,1.07828193,2784.8,2784.5,0.6952302]
[1643732011892,0.35379833,2784.8,2784.5,0.6952302]
[1643732012293,0.35379833,2784.8,2784.6,2.6929742]
[1643732012491,1.169,2785.7,2784.6,2.6929742]
[1643732012492,1.169,2785.7,2784.7,0.3]
[1643732012742,1.5143005,2785.6,2784.8,1.19769]
[1643732012941,0.79818287,2785.4,2784.8,1.19769]
[1643732014039,0.79818287,2785.4,2785.0,0.8976688]
[1643732014243,0.79818287,2785.4,2785.0,1.1976688]
[1643732014440,0.79818287,2785.4,2785.1,0.3]
[1643732014639,3.0356,2785.9,2785.1,0.3]
[1643732014845,1.5142447,2785.8,2785.1,0.3]
[1643732015039,1.5142447,2785.7,2785.1,0.3]
[1643732015242,1.1777,2786.1,2785.1,0.3]
[1643732015440,0.37723541,2785.9,2785.1,0.3]
[1643732015640,0.37723541,2785.9,2785.1,1.19759]
[1643732015641,1.51417667,2785.8,2785.1,1.19759]
[1643732015841,0.70511068,2785.5,2785.1,1.19759]
[1643732016498,0.37723541,2785.9,2785.2,0.8975873]
[1643732016702,1.5141864,2785.8,2785.2,0.8975873]
[1643732016902,1.5141864,2785.8,2785.2,1.1975873]
[1643732017396,0.93865104,2785.5,2785.2,1.1975873]
[1643732019402,6.53193611,2786.1,2785.2,1.1975873]
[1643732019600,1.51416075,2786.0,2785.2,1.1975873]
[1643732019807,0.31763997,2786.5,2785.2,1.1975873]
[1643732019808,0.13819997,2786.5,2785.5,0.8974191]
[1643732020001,1.51390503,2786.4,2785.5,0.8974191]
[1643732020259,1.51390503,2786.4,2785.4,2.10650195]
[1643732020260,1.51390503,2786.4,2785.6,1.04950351]
[1643732020459,0.9038841,2786.4,2785.6,0.6]
[1643732020658,1.51381943,2786.3,2785.6,0.3]
[1643732020865,1.51381943,2786.3,2785.5,1.47946]
[1643732021061,1.51381943,2786.3,2785.8,2.6918805]
[1643732021260,1.51381943,2786.3,2785.9,1.6]
[1643732021461,1.51381943,2786.2,2786.1,0.89726]
[1643732021661,1.1624,2786.7,2786.1,1.19726]
[1643732021864,1.51380278,2786.6,2786.1,1.49726]
[1643732022067,1.51380278,2786.5,2786.1,1.49726]
[1643732022363,1.51380278,2786.4,2786.3,0.8972634]
[1643732022565,1.88802959,2786.4,2786.3,1.1972634]
[1643732023162,0.37422681,2786.4,2786.3,1.1972634]
[1643732024297,3.97422681,2786.4,2786.3,2.0944534]
[1643732024499,3.6,2786.4,2786.3,2.0944534]
[1643732024801,3.6,2786.4,2786.3,1.1972634]
[1643732025201,3.6,2786.4,2786.3,1.53976369]
[1643732025601,3.6,2786.4,2786.3,1.1972634]
[1643732025801,0.73167457,2786.5,2786.3,1.1972634]
[1643732026004,0.1794,2787.0,2786.3,2.0944534]
[1643732026203,1.5136343,2786.9,2786.3,2.0944534]
[1643732027205,0.71519924,2786.7,2786.4,0.37012815]
[1643732028062,0.1794,2787.0,2786.4,0.37012815]
[1643732028263,1.5136046,2786.9,2786.4,0.37012815]
[1643732028867,1.51219559,2786.9,2786.4,0.37012815]
[1643732029268,2.39147599,2786.9,2786.4,0.37012815]
[1643732029469,0.8792804,2786.9,2786.4,0.37012815]
[1643732029769,0.8792804,2786.9,2786.5,2.9912469]
[1643732029977,0.1794,2787.0,2786.5,2.9912469]
[1643732030172,0.1794,2787.0,2786.6,2.09418]
[1643732030572,0.1794,2787.0,2786.6,0.3]
[1643732030973,0.1794,2787.0,2786.5,2.9912469]
[1643732031175,0.68322161,2786.8,2786.5,2.9912469]
[1643732031414,0.1794,2787.0,2786.5,2.9912469]
[1643732031415,0.1794,2787.0,2786.6,0.3]
[1643732031609,0.1794,2787.0,2786.9,0.40848173]
[1643732031814,2.8,2786.9,2786.6,0.3]
[1643732032408,2.8,2786.9,2786.6,1.3]
[1643732032808,0.1794,2787.0,2786.7,0.42863256]
[1643732033011,0.1794,2787.0,2786.7,1.32566256]
[1643732033211,0.1794,2787.0,2786.8,0.8970002]
[1643732033412,0.1794,2787.0,2786.8,1.1970002]
[1643732033611,9.99862713,2788.2,2786.9,0.01187091]
[1643732033817,9.99862713,2788.2,2787.4,0.01217957]
[1643732033818,7.9102,2788.2,2787.4,0.01217957]
[1643732034011,0.85149941,2787.6,2787.4,0.01217957]
[1643732034412,0.71655424,2788.4,2787.4,0.01217957]
[1643732034612,0.71655424,2788.4,2787.4,0.0169997]
[1643732034811,0.71655424,2788.4,2787.6,0.42970571]
[1643732035012,0.71655424,2788.4,2788.2,0.01244848]
[1643732035250,0.71655424,2788.4,2787.6,0.3]
[1643732035443,0.71655424,2788.4,2787.6,0.01249581]
[1643732035845,0.71655424,2788.4,2787.6,0.31249581]
[1643732036044,0.71655424,2788.4,2787.6,0.01249581]
[1643732036244,0.71655424,2788.4,2788.0,0.31798318]
[1643732036450,0.71655424,2788.4,2787.6,0.01249581]
[1643732036647,0.71655424,2788.4,2787.4,0.55]
[1643732036946,0.71655424,2788.4,2787.1,1.7938428]
[1643732037547,0.68156827,2787.8,2787.2,0.3668849]
[1643732037750,0.431,2788.5,2787.2,0.3668849]
[1643732038147,0.431,2788.5,2787.2,0.6668849]
[1643732038448,0.33937843,2788.6,2788.0,0.33289751]
[1643732038647,0.33937843,2788.6,2787.2,0.3]
[1643732038891,0.33937843,2788.6,2787.1,3.0938428]
[1643732039097,0.33937843,2788.6,2787.2,0.89695]
[1643732039496,0.39478758,2788.1,2787.4,0.41332298]
[1643732039698,0.431,2788.9,2787.4,0.41332298]
[1643732039896,0.74817585,2788.1,2787.4,0.71332298]
[1643732040306,0.74817585,2788.1,2786.9,1.7940109]
[1643732040503,0.431,2788.0,2786.8,0.25]
[1643732041100,0.84130211,2787.6,2786.8,0.25]
[1643732041299,0.81488676,2788.0,2787.4,0.40313541]
[1643732041498,0.81488676,2788.0,2786.8,0.25]
[1643732041698,0.81488676,2788.0,2786.8,0.55]
[1643732042099,0.81488676,2788.0,2786.9,0.8970896]
[1643732042740,0.81488676,2788.0,2787.0,0.73559474]
[1643732043343,0.38388676,2788.0,2787.0,0.73559474]
[1643732043944,3.94946345,2788.3,2787.2,0.8969822]
[1643732044145,3.2767,2788.3,2787.2,0.8969822]
[1643732044346,3.2767,2788.3,2787.2,1.1969822]
[1643732044947,0.87670443,2787.6,2787.2,1.1969822]
[1643732045446,3.2767,2788.3,2787.2,2.9908257]
[1643732045646,3.2767,2788.3,2787.2,3.8877157]
[1643732046245,3.2767,2788.3,2787.2,2.9908257]
[1643732046497,0.86258317,2787.9,2787.2,1.1969822]
[1643732047799,3.2767,2788.3,2787.2,1.1969822]
[1643732048004,0.40443139,2788.0,2787.4,0.36840372]
[1643732048200,0.40443139,2788.0,2787.2,3.8877953]
[1643732048401,0.40443139,2788.0,2787.4,0.3]
[1643732048605,3.2767,2788.3,2787.4,0.3]
[1643732048801,3.2767,2788.3,2787.2,3.5877953]
[1643732048802,0.74116205,2788.0,2787.2,3.8877953]
[1643732049202,0.74116205,2788.0,2787.2,4.7847453]
[1643732049704,0.74116205,2788.0,2787.4,0.34603152]
[1643732049902,0.74116205,2788.0,2787.4,0.34510678]
[1643732050139,1.51321337,2787.9,2787.4,0.34510678]
[1643732050343,1.51321337,2787.9,2787.2,2.9908553]
[1643732050744,0.74116205,2788.0,2787.2,2.9908553]
[1643732051549,0.74116205,2788.0,2787.4,0.38238436]
[1643732051949,3.2767,2788.3,2787.4,0.38238436]
[1643732052152,9.48294161,2788.7,2787.7,0.01203125]
[1643732052349,6.7,2788.6,2787.6,0.87939212]
[1643732052952,0.76965459,2788.2,2787.9,0.36822695]
[1643732053751,6.7,2788.6,2787.9,0.36822695]
[1643732054521,7.13603543,2788.6,2787.9,0.36822695]
[1643732054822,1.0201613,2788.0,2786.4,2.6909961]
[1643732055018,0.431,2787.9,2786.3,3.42951436]
[1643732055217,0.431,2787.9,2786.4,2.29471436]
[1643732055416,0.431,2787.9,2786.5,0.8971966]
[1643732055617,0.94450956,2787.7,2787.2,0.31849242]
[1643732055923,0.431,2787.9,2787.2,0.31849242]
[1643732056519,0.431,2788.4,2787.2,0.61849242]
[1643732056722,3.43531436,2788.5,2787.2,0.61849242]
[1643732056723,1.1406,2788.5,2787.8,0.42827125]
[1643732056918,0.86937987,2788.3,2786.9,0.3]
[1643732057123,2.29471436,2788.2,2787.0,0.25]
[1643732057417,2.29471436,2788.2,2786.6,1.6]
[1643732057850,2.29471436,2788.2,2786.5,8.80259]
[1643732058048,2.29471436,2788.2,2787.3,0.3921106]
[1643732058247,1.10376345,2788.4,2787.3,0.3921106]
[1643732058248,0.431,2788.4,2787.3,0.3921106]
[1643732058460,8.19557776,2788.7,2787.3,0.6921106]
[1643732058461,7.2986,2788.7,2787.3,0.6921106]
[1643732058653,2.29471436,2788.7,2787.3,0.6921106]
[1643732059256,0.89621319,2788.4,2788.1,0.36559826]
[1643732059453,0.89621319,2788.4,2787.4,0.25]
[1643732059656,2.29471436,2788.3,2786.8,4.5401907]
[1643732059857,0.431,2788.2,2786.8,3.6431]
[1643732060456,1.57449247,2788.7,2788.0,0.32797926]
[1643732060457,2.29471436,2788.6,2788.0,0.32797926]
[1643732060757,11.54777166,2789.1,2788.0,0.32797926]
[1643732060758,4.23096345,2788.9,2788.0,0.32797926]
[1643732061062,0.67276345,2788.8,2787.7,0.8968355]
[1643732061254,3.79996345,2788.9,2787.8,0.3]
[1643732061704,0.95464278,2788.6,2787.8,0.3]
[1643732061901,3.79996345,2788.9,2788.2,0.35832518]
[1643732062103,0.67276345,2788.9,2788.2,0.35832518]
[1643732062303,0.67276345,2788.9,2788.3,0.1793]
[1643732062904,0.82783776,2788.5,2788.3,0.1793]
[1643732063104,0.82783776,2788.5,2787.9,0.1792]
[1643732063508,0.67276345,2788.8,2787.9,1.0759335]
[1643732063711,0.67276345,2789.2,2788.1,1.7931797]
[1643732063908,3.81136345,2789.3,2788.2,2.83707925]
[1643732064111,1.89236345,2789.6,2788.4,0.01253782]
[1643732064308,0.67276345,2789.8,2788.5,0.431]
[1643732064511,7.00231745,2789.9,2788.6,3.20824029]
[1643732064710,6.329554,2789.9,2788.6,2.58063004]
[1643732064911,6.329554,2789.9,2789.1,0.8963582]
[1643732065163,6.329554,2789.9,2789.2,0.1792]
[1643732065353,6.329554,2789.9,2789.2,0.4792]
[1643732066364,6.329554,2789.9,2789.4,0.4426729]
[1643732066554,6.329554,2789.9,2789.5,0.6102]
[1643732066759,0.67276345,2790.5,2789.5,0.6102]
[1643732066760,0.33258587,2790.5,2789.5,0.9102]
[1643732066953,3.3331,2790.7,2789.5,0.9102]
[1643732067153,3.3331,2790.7,2789.5,1.9102]
[1643732067453,3.3331,2790.7,2789.5,0.6102]
[1643732067654,0.74055628,2790.0,2789.5,0.1792]
[1643732068057,0.13819997,2790.7,2789.5,0.3]
[1643732068257,0.13819997,2790.7,2789.6,0.1792]
[1643732068456,0.13819997,2790.7,2789.2,0.3]
[1643732068457,0.13819997,2790.7,2789.2,2.75983004]
[1643732068657,0.13819997,2790.7,2789.2,0.4792]
[1643732068904,0.4131534,2790.6,2789.9,0.33097515]
[1643732069105,0.13819997,2790.7,2789.5,3.17684884]
[1643732069306,0.13819997,2790.7,2789.5,3.47684884]
[1643732069505,0.13819997,2790.7,2789.6,0.3]
[1643732069707,0.13819997,2790.7,2789.5,0.3]
[1643732069907,0.13819997,2790.7,2789.4,0.731]
[1643732070108,0.83012054,2790.5,2790.1,0.37993541]
[1643732070309,0.83012054,2790.5,2789.4,1.031]